Cogmind - Beta 15 @@@ ROGUE MODE // 2025.10.03 @ 17:22:04 Player: rapskalian Result: Destroyed by G-47 Trooper with Particle Gun Performance ------------- Evolutions (0) 0 Regions Visited (2) 400 Robots Destroyed (18) 90 Value Destroyed (410) 410 Prototype IDs (0) 0 Alien Tech Used (0) 0 Bonus (0) 0 TOTAL SCORE: 900 Bonus ------- None Cogmind --------- Core Integrity 0/250 Matter 300/300 Energy 100/100 System Corruption 0% Temperature Hot (201) Movement Rolling (130) Ox2 Location -10/Mines Parts ------- > --- POWER (1) -------- (None) > --- PROPULSION (2) --- Compact Wheel > --- UTILITY (2) ------ High-capacity Storage Unit Structural Scanner > --- WEAPON (2) ------- Small Laser > --- INVENTORY (20) --- Compact Wheel Compact Wheel Improved Heat Sink Peak State ------------ > --- POWER ------------ Light Nuclear Core > --- PROPULSION ------- Wheel Wheel > --- UTILITY ---------- Improved Heat Sink Structural Scanner > --- WEAPON ----------- Particle Gun Assault Rifle > --- INVENTORY -------- Light Ion Engine Aluminum Leg Aluminum Leg Aluminum Leg Small Laser [Rating: 12] Favorites ----------- Power Light Nuclear Core Engine Light Ion Engine Power Core Light Nuclear Core Propulsion Wheel Wheel Wheel Utility Structural Scanner Device Structural Scanner Storage High-capacity Storage Unit Protection Light Armor Plating Weapon Assault Rifle Energy Gun Particle Gun Ballistic Gun Assault Rifle Build | -11 -10 -10 ------- Run | Yrd Mat Min Slots Evolved . | . . . Power . | . . . Propulsion . | . . . Utility . | . . . Weapon . | . . . Parts Attached 16 | 5 8 3 Power 3 | 1 1 1 Engine 2 | 1 . 1 Core 1 | . 1 . Reactor . | . . . Propulsion 4 | 2 1 1 Treads . | . . . Leg . | . . . Wheel 4 | 2 1 1 Hover . | . . . Flight . | . . . Utility 4 | . 4 . Device 2 | . 2 . Storage 1 | . 1 . Processor . | . . . Hackware . | . . . Protection 1 | . 1 . Artifact . | . . . Weapon 5 | 2 2 1 Energy Gun 4 | 1 2 1 Energy Cannon . | . . . Ballistic Gun 1 | 1 . . Ballistic Cannon . | . . . Launcher . | . . . Special Weapon . | . . . Impact Weapon . | . . . Slashing Weapon . | . . . Piercing Weapon . | . . . Special Melee Weapon . | . . . Unidentified Prototypes . | . . . Parts Lost 9 | . 3 6 Power 2 | . . 2 Propulsion 2 | . . 2 Utility 1 | . 1 . Weapon 4 | . 2 2 Highest Loss Streak 4 | . 2 4 To Critical Strikes . | . . . Average Backups 4 | 2 4 4 Power . | . . . Propulsion 2 | 1 3 2 Utility . | . . 1 Weapon . | . . . Tool/Special . | . . . Unused Backups 6 | . 4 2 Power . | . . . Propulsion 6 | . 4 2 Utility . | . . . Weapon . | . . . Tool/Special . | . . . Average Slot Usage (%) 96 | . 96 95 Engine 3 | . 3 2 Core 10 | . 9 11 Wheel 27 | . 28 25 Device 22 | . 23 14 Storage 2 | . . 14 Protection 1 | . 2 . Energy Gun 17 | . 15 27 Ballistic Gun 9 | . 11 . Peak Build Rating 12 | 5 12 10 Average Rating 9 | 4 10 8 On Entrance 5 | . 5 10 Naked Turns . | . . . Heaviest Build 50 | 7 50 50 Greatest Support 32 | 20 26 32 Greatest Overweight (x) 2 | . 1 2 Average Overweight (x) . | . . 1 Largest Inventory Capacity 20 | 5 20 20 Average Capacity 7 | 5 5 20 Most Carried 6 | 5 6 6 Average Carried 4 | 2 4 4 Final Capacity 20 | 5 20 20 Final Carried 6 | 5 6 3 Class Distribution -------------------- 100% | Mutant Dominant Class ---------------- Mutant | -10/Materials Mutant | -10/Mines Resources | -11 -10 -10 ----------- Run | Yrd Mat Min Matter Collected 492 | 268 214 10 Remotely . | . . . Salvage Created 507 | 66 399 42 Parts 37 | 3 29 5 Haulers Intercepted . | . . . Recyclers Shooed 1 | . 1 . Parts Field Recycled . | . . . Retrieved Matter . | . . . Parts Self-Destructed . | . . . Prevented . | . . . Kills | -11 -10 -10 ------- Run | Yrd Mat Min Combat Hostiles Destroyed 17 | 1 13 3 Guns 17 | 1 13 3 Classes Destroyed 3 | 2 1 . Worker 1 | 1 . . Swarmer 8 | . 5 3 Grunt 9 | 1 8 . Best Kill Streak 4 | 1 4 2 Combat Bots Only 4 | 1 4 2 Max Kills in Single Turn 1 | 1 1 1 Gunslinging . | . . . Exploded . | . . . Melee . | . . . Uniques/NPCs Destroyed . | . . . Combat | -11 -10 -10 -------- Run | Yrd Mat Min Hostile Shots Fired 125 | 4 61 60 Missed 30 | 1 18 11 Hits 95 | 3 43 49 Projectile 95 | 3 43 49 Critical Strikes 1 | . . 1 Damage Taken 1025 | 33 445 547 Core 264 | 11 68 185 Absorbed by Shields . | . . . Regen/Repaired (Parts) 55 | . 55 . Core Remaining (%) 95 | 95 . . Volleys Fired 76 | 6 50 20 Largest 2 | 2 2 2 Hottest 105 | 60 105 105 Shots Fired 139 | 12 91 36 Gun 139 | 12 91 36 Cannon . | . . . Launcher . | . . . Special . | . . . Kinetic 51 | 6 45 . Thermal 64 | . 28 36 Explosive . | . . . Electromagnetic 24 | 6 18 . Robot Hit Streak 8 | 3 8 5 Robot Miss Streak 7 | 3 7 3 Penetration Max . | . . . Secondary Targets . | . . . Shots Hit Robots 75 | 6 48 21 Core Hits 25 | 2 18 5 Critical Kills . | . . . Critical Parts Destroyed . | . . . Critical Strikes 1 | . 1 . Burn 1 | . 1 . Melee Attacks . | . . . Impact . | . . . Slashing . | . . . Piercing . | . . . Sneak Attacks . | . . . Combat Hostiles . | . . . Follow-up Attacks . | . . . Damage Inflicted 1004 | 82 681 241 Guns 995 | 82 672 241 Cannons . | . . . Explosions . | . . . Melee . | . . . Ramming 9 | . 9 . Kinetic 351 | 27 324 . Thermal 486 | . 245 241 Explosive . | . . . Electromagnetic 158 | 55 103 . Impact . | . . . Slashing . | . . . Piercing . | . . . Highest Corruption . | . . . Average Corruption . | . . . Corruption Purged . | . . . Corruption Blocked . | . . . Overload Shots . | . . . Overflow Damage . | . . . Projectiles . | . . . Explosions . | . . . Melee . | . . . Knockbacks . | . . . Impact . | . . . Kinetic . | . . . Secondary . | . . . Self-Inflicted Damage 3 | . 3 . Shots . | . . . Rammed 3 | . 3 . Targets Rammed 3 | . 3 . Kicked . | . . . Crushed . | . . . Highest Temperature 229 | 18 45 229 Average Temperature 53 | 14 15 101 Received Heat Transfer 420 | 18 174 228 Siege Activations . | . . . Martial Activations . | . . . Shielding Activations . | . . . Robots Disrupted . | . . . Combat Hostiles . | . . . Robots Corrupted . | . . . Combat Hostiles . | . . . Parts Fried . | . . . Impact Corruptions . | . . . Robots Melted . | . . . Combat Hostiles . | . . . Parts Melted . | . . . Heat Transferred 1167 | . 630 537 Parts Sabotaged . | . . . Parts Stolen . | . . . Parts Stripped . | . . . Power Chain Reactions . | . . . Alert | -11 -10 -10 ------- Run | Yrd Mat Min Maximum Alert Level . | . . . Low Security (%) 100 | 100 100 100 Level 1 . | . . . Level 2 . | . . . Level 3 . | . . . Level 4 . | . . . Level 5 . | . . . High Security . | . . . Max Security . | . . . Peak Influence 137 | 20 137 55 Initial 6 | . 6 3 Average 43 | 2 52 23 Influence Increases 498 | 25 388 85 Destroy 0b10 Robot/C 340 | 20 260 60 Destroy 0b10 Robot/NC 5 | 5 . . Destroy Leader 60 | . 50 10 Disable Machine 15 | . 15 . Destroy Structure 3 | . 3 . Lose Combat Pursuer 75 | . 60 15 Influence Decreases 498 | 15 390 93 Entered New Map 9 | . 4 5 Time Decay 434 | 15 356 63 Lost Part 55 | . 30 25 Squads Dispatched 2 | . 2 . Investigation . | . . . Extermination . | . . . Reinforcement 2 | . 2 . Assault . | . . . Garrison . | . . . Intercept . | . . . Searches Triggered . | . . . Construction Impeded . | . . . Haulers Reinforced . | . . . Active Scanning Responses . | . . . Cargo Convoy Interrupts . | . . . Stealth | -11 -10 -10 --------- Run | Yrd Mat Min Distress Signals . | . . . Communications Jammed . | . . . Distress Signals . | . . . Times Spotted 31 | 1 24 6 Peak Tracking Total 4 | 1 4 3 Tactical Retreats 4 | . 3 1 Traps | -11 -10 -10 ------- Run | Yrd Mat Min Traps Triggered . | . . . Indirectly . | . . . Trap Hack Attempts . | . . . Triggered . | . . . Disarmed . | . . . Reprogrammed . | . . . Reused . | . . . Traps Extracted . | . . . Installed . | . . . Triggered . | . . . Machines | -11 -10 -10 ---------- Run | Yrd Mat Min Machines Disabled 1 | . 1 . Max in Single Turn 1 | . 1 . Machines Repaired . | . . . Machines Dismantled . | . . . Machines Sabotaged . | . . . Overloaded Fab Kills . | . . . Hacking | -11 -10 -10 --------- Run | Yrd Mat Min Machines Accessed 1 | . 1 . Terminals . | . . . Fabricators . | . . . Repair Stations 1 | . 1 . Recycling Units . | . . . Scanalyzers . | . . . Garrison Access . | . . . Total Hacks 4 | . 4 . Successful 4 | . 4 . Failed . | . . . Catastrophic . | . . . Database Lockouts . | . . . Manual . | . . . Terminals . | . . . Fabricators . | . . . Repair Stations 4 | . 4 . Recycling Units . | . . . Scanalyzers . | . . . Garrison Access . | . . . Terminal Hacks . | . . . Fabricator Hacks . | . . . Repair Station Hacks 4 | . 4 . Scan Component 2 | . 2 . Repair 2 | . 2 . Recycling Unit Hacks . | . . . Scanalyzer . | . . . Garrison Access Hacks . | . . . Unauthorized Hacks . | . . . Terminals . | . . . Fabricators . | . . . Repair Stations . | . . . Recycling Units . | . . . Scanalyzers . | . . . Garrison Access . | . . . Data Cores Recovered . | . . . Used . | . . . Hacking Detections 1 | . 1 . Full Trace Events . | . . . Feedback Events . | . . . Feedback Blocked . | . . . Robot Schematics Acquired . | . . . Robots Built . | . . . Authchips . | . . . Time . | . . . Total Robot Build Rating . | . . . Part Schematics Acquired . | . . . Parts Built . | . . . Authchips . | . . . Time . | . . . Total Part Build Rating . | . . . Parts Repaired 2 | . 2 . Time 85 | . 85 . Parts Recycled . | . . . Recycled Matter . | . . . Retrieved Matter . | . . . Retrieved Components . | . . . Parts Scanalyzed . | . . . Part Schematics Acquired . | . . . Parts Damaged . | . . . Bothacking | -11 -10 -10 ------------ Run | Yrd Mat Min Used RIF Installer . | . . . Robots Hacked . | . . . Non-combat . | . . . Combat . | . . . Robot Hacks Applied . | . . . Relay Couplers Released . | . . . Fabnet Peak Effective % . | . . . Robots Rewired . | . . . Allies Hacked . | . . . Hacks Repelled . | . . . Allies | -11 -10 -10 -------- Run | Yrd Mat Min Total Allies . | . . . Largest Group . | . . . Highest-Rated Group . | . . . Highest-Rated Ally . | . . . Total Orders . | . . . Ally Attacks . | . . . Total Damage . | . . . Kills . | . . . Allies Corrupted . | . . . Allies Melted . | . . . Intel | -11 -10 -10 ------- Run | Yrd Mat Min Active Infowar (turns) 1106 | . 913 193 Structural 1106 | . 913 193 Robot Analysis Total . | . . . Derelict Logs Recovered . | . . . Drone Launches . | . . . Drone Recoveries . | . . . Exploration | -11 -10 -10 ------------- Run | Yrd Mat Min Turns Passed 1213 | 102 918 193 Spaces Moved 854 | 94 664 96 Core 16 | 16 . . Treads . | . . . Legs . | . . . Wheels 838 | 78 664 96 Hover . | . . . Flight . | . . . Fastest Speed 50 | 50 80 105 Average Speed 88 | 74 87 110 Slowest Speed 130 | 80 105 130 Overloaded Moves . | . . . Propulsion Burnouts . | . . . Robots Hopped . | . . . Potential Cave-ins . | . . . Cave-ins Triggered . | . . . Exploration Rate (%) 40 | 7 82 31 Regions Visited 2 Branch Regions 1 Pre-discovered Areas . | . . . Known Exits Taken . | . . . Unknown Exits Taken 2 | 1 1 . Scrap Searched . | . . . Spaces Dug . | . . . Terrain Destroyed . | . . . Melee . | . . . Projectile . | . . . AOE . | . . . Terrain Rammed . | . . . Walls Destroyed . | . . . Machines Disabled . | . . . Actions | -11 -10 -10 --------- Run | Yrd Mat Min Total 1166 | 110 909 147 Wait 191 | 1 162 28 Move 852 | 93 663 96 Hop . | . . . Pick Up 14 | 5 9 . Fast Attach 13 | 5 8 . Attach 4 | . 1 3 Detach . | . . . Swap 2 | . 2 . Drop 11 | . 11 . Fire 76 | 6 50 20 Melee . | . . . Ram 3 | . 3 . Kick . | . . . Crush . | . . . Escape Stasis . | . . . Rewire . | . . . Trap . | . . . Miscellaneous . | . . . Route ------- -11/Scrapyard -10/Materials (discovered 4 exits: [*Mat x2] / [*Min] / [Sub]) -10/Mines History --------- Turn | Location | Event 2 | -11/Scrapyard | Met Revision 17 76 | -11/Scrapyard | Discovered new exit (range 8) 103 | -11/Scrapyard | Entered Materials 232 | -10/Materials | Discovered new exit (range 13) 305 | -10/Materials | Build established: Mutant 428 | -10/Materials | Discovered new exit (range 12) 707 | -10/Materials | Discovered new exit (range 16) 768 | -10/Materials | Repaired Broken Lgt. Nuclear Core 801 | -10/Materials | Repaired Particle Gun 968 | -10/Materials | Discovered new exit (range 15) 1021 | -10/Materials | Entered Mines 1073 | -10/Mines | Core integrity fell below 50% 1207 | -10/Mines | Core integrity fell below 20% 1214 | -10/Mines | Destroyed by G-47 Trooper with Particle Gun Last Messages --------------- 00918_ S-10 Pest destroyed. 00939_ R-06 Scavenger collects Flight Unit. 00968_ EXIT=FOUND 00991_ Dropped Imp. Heat Sink. 00992_ Acquired Hcp. Storage Unit. 01007_ Acquired Imp. Heat Sink. LOCATION=UNKNOWN GOAL=ESCAPE 01070_ Particle Gun destroyed. 01071_ S-10 Pest destroyed. 01110_ Acquired 10 matter. 01114_ Wheel destroyed. 01114_ S-10 Pest destroyed. 01124_ R-06 Scavenger collects Flight Unit. 01142_ K-01 Serf collects debris. 01171_ Lgt. Nuclear Core destroyed. 01184_ Com. Wheel destroyed. 01200_ Sml. Laser destroyed. 01202_ Lgt. Ion Engine destroyed. 01214_ Critical hit (Burn: +37). Map ----- +----------------------------------------------------+ | ???????????#### ### ### | | ???????????### ########## | | ??? ??????## ##########? | | ?? ##??## ###???????? | | ?### ###### ###???????? | | #### ###### ##???????? | | ### #### ##???????? | | ## ## ###???????? | | # ####???????? | | ####????????? | | ###?????????? | | ## ###?????????? | | # #### ######??????? | | ## ##### ######?????? | | #### ##?## ###?????? | | ?#### ?????## ##?????? | | ??####?????## ##?????? | | ???###?????### ##?????? | | ???????????#### ###?????? | | ????????????#### ###?????? | | ?????????????#### ##?????? | | ?????????????#### ###????? | | ?????????????### ####???? | | ?????????????## ######? | | ?????????????## ## ###### | | ?????????????####### g @### | | ?????????????####### g ## | | ??????????????????## ## | | ??????????????????### ### | | ??????????????????########### | | ???????????????????#########? | | ????????????????????????????? | | | | | | | | | | | | | | | | | | | | | | | | | | | | | | | | | | | | | +----------------------------------------------------+ Best States ------------- Heat Dissipation 39 Energy Generation 14 Energy Capacity 160 Matter Stores 300 Matter Capacity 300 Sight Range 16 Terrain Scan Density 10 Armor Coverage 150 Evasion (%) 50 Item Schematics ----------------- None Robot Schematics ------------------ None Fabricated ------------ Nothing Repaired ---------- Lgt. Nuclear Core | 82% | -10/Materials | Broken Particle Gun | 38% | -10/Materials Alien Tech Used ----------------- None Achievements -------------- None Challenges ------------ None Game ------ Seed ProjectionGrapheneComputer Manual? 0 Play Time 00:19:10 Cumulative 7.0 hours Start 2025.10.03 @ 17:02:32 End 2025.10.03 @ 17:22:04 Sessions 1 Manual Loads 0 Difficulty Rogue Special Mode None Game No. 5 Rogue 5 Adventurer 0 Explorer 0 Win Type - Total 0 Types 0/0/0/0/0/0/0/0/0/0 Lore% 0 Gallery% 10 Achievement% 10 Wizard Run 0 Options --------- Layout 0 ASCII 0 Keyboard 1 Movement Numpad Keybinds 0 Fullscreen 1 Font 24/Smallcaps Map View 76x50 Zoom Use 0% Tactical HUD 1 Map Filters NONE Filters NONE Steam 1 RUN: 25a3980d-6e23-46cc-a69e-35f73bf06f5e